bitfinex/quotes_BTCUSD_20250505
["timestamp","ask_amount","ask_price","bid_price","bid_amount"]
[1746479293352,0.22183113,94667.0,94666.0,0.001]
[1746479293599,0.2218302,94667.0,94666.0,0.001]
[1746479293770,0.21127132,94665.0,94655.0,0.21129302]
[1746479293941,0.21127132,94665.0,94652.0,0.21129916]
[1746479294144,0.22717132,94665.0,94652.0,0.21129916]
[1746479294374,0.3196332,94665.0,94652.0,0.21129916]
[1746479294717,0.3196332,94665.0,94656.0,0.21128959]
[1746479294920,0.3196332,94665.0,94646.0,0.01056568]
[1746479294921,0.6750332,94665.0,94642.0,0.06532844]
[1746479295253,0.6750332,94665.0,94648.0,0.21130926]
[1746479295432,0.6750332,94665.0,94642.0,0.07589457]
[1746479295618,0.34,94665.0,94659.0,0.21128283]
[1746479296078,1.05127132,94665.0,94657.0,0.21128834]
[1746479296380,1.06757132,94665.0,94657.0,0.21128834]
[1746479296597,0.84,94665.0,94664.0,0.21173388]
[1746479296963,0.841,94665.0,94664.0,0.21772632]
[1746479297372,0.341,94665.0,94664.0,0.21772632]
[1746479298028,0.341,94665.0,94664.0,0.00645277]
[1746479298427,0.341,94665.0,94664.0,0.21772632]
[1746479298844,0.341,94665.0,94664.0,0.00645277]
[1746479299015,0.55227132,94665.0,94664.0,0.00645277]
[1746479299642,0.341,94665.0,94664.0,0.00645277]
[1746479300179,0.35756354,94665.0,94664.0,0.21772632]
[1746479302258,0.37734488,94665.0,94664.0,0.21772632]
[1746479303362,0.37734488,94665.0,94664.0,0.24832632]
[1746479304148,0.03734488,94665.0,94664.0,0.24832632]
[1746479306969,0.02078134,94665.0,94664.0,0.24832632]
[1746479310126,0.03734467,94665.0,94664.0,0.24832632]
[1746479310324,0.03734467,94665.0,94664.0,0.23292632]
[1746479311001,0.03734467,94665.0,94664.0,0.24932632]
[1746479313318,0.01756333,94665.0,94664.0,0.24932632]
[1746479313671,0.01756333,94665.0,94664.0,0.23292632]
[1746479314035,0.01756333,94665.0,94664.0,0.21772632]
[1746479314176,0.03737841,94665.0,94664.0,0.21772632]
[1746479320350,0.02081508,94665.0,94664.0,0.21772632]
[1746479323258,0.03737841,94665.0,94664.0,0.21772632]
[1746479326667,0.03737841,94665.0,94664.0,0.24982632]
[1746479329134,0.01756333,94665.0,94664.0,0.24982632]
[1746479329897,0.001,94665.0,94664.0,0.24982632]
[1746479330099,0.0208431,94665.0,94664.0,0.24982632]
[1746479333345,0.03740649,94665.0,94664.0,0.24982632]
[1746479335984,0.03740649,94665.0,94664.0,0.23392632]
[1746479336389,0.03740649,94665.0,94664.0,0.21772632]
[1746479336586,0.03740649,94665.0,94664.0,0.23282632]
[1746479337177,0.01756339,94665.0,94664.0,0.23282632]
[1746479338599,0.01756339,94665.0,94664.0,0.24882632]
[1746479339246,0.001,94665.0,94664.0,0.24882632]
[1746479341455,0.34,94686.0,94685.0,0.21122669]
[1746479341788,0.34,94686.0,94684.0,0.21122841]
[1746479341993,0.34,94686.0,94685.0,0.00599689]
[1746479342245,0.35656143,94686.0,94684.0,0.21122841]
[1746479342447,0.35656143,94686.0,94685.0,0.21717963]
[1746479342643,0.35656143,94686.0,94685.0,0.00595294]
[1746479343258,0.35656143,94686.0,94685.0,0.21717963]
[1746479343890,0.01656143,94686.0,94685.0,0.21717963]
[1746479344316,0.56778589,94686.0,94685.0,0.00595294]
[1746479344514,0.35656143,94686.0,94685.0,0.00595294]
[1746479345399,0.56778589,94686.0,94685.0,0.00595294]
[1746479345799,0.34,94685.0,94683.0,0.21122687]
[1746479346149,0.34,94685.0,94684.0,0.00595505]
[1746479347595,0.55122669,94685.0,94684.0,0.00595505]
[1746479348202,0.34,94687.0,94685.0,0.2112249]
[1746479348689,0.34,94687.0,94686.0,0.00595084]
[1746479348889,0.55122223,94687.0,94686.0,0.00595084]
[1746479349112,0.56178334,94687.0,94684.0,0.21122484]
[1746479349714,0.0165614,94687.0,94686.0,0.21122446]
[1746479350064,0.0165614,94687.0,94686.0,0.2171753]
[1746479350781,0.0165614,94687.0,94686.0,0.00595084]
[1746479351598,0.56778363,94687.0,94686.0,0.00595084]
[1746479352017,0.56178669,94686.0,94683.0,0.21123065]
[1746479352211,0.35056122,94686.0,94684.0,0.21122871]
[1746479352397,0.35056122,94686.0,94684.0,0.2171295]
[1746479352572,0.56178672,94686.0,94684.0,0.00590079]
[1746479352770,0.34,94686.0,94684.0,0.00590079]
[1746479353141,0.35056122,94686.0,94685.0,0.00589868]
[1746479353271,0.56178693,94686.0,94683.0,0.21123116]
[1746479353471,0.56178693,94686.0,94684.0,0.00590079]
[1746479354571,0.55122669,94685.0,94684.0,0.00590079]
[1746479354687,0.34,94684.0,94682.0,0.21123298]
[1746479354891,0.34,94684.0,94683.0,0.00590289]
[1746479355135,0.34,94684.0,94683.0,0.21713405]
[1746479356390,0.36712251,94687.0,94685.0,0.21122629]
[1746479356589,0.34,94685.0,94684.0,0.21122872]
[1746479357730,0.23834506,94687.0,94684.0,0.21122872]
[1746479357909,0.3565614,94687.0,94686.0,0.21122446]
[1746479358547,0.36712251,94687.0,94685.0,0.2112264]
[1746479358743,0.3565614,94687.0,94685.0,0.2112264]
[1746479358924,0.02712251,94687.0,94684.0,0.21122469]
[1746479359328,0.01056178,94681.0,94679.0,0.211239]
[1746479359551,0.01056144,94684.0,94682.0,0.21123228]
[1746479359755,0.01056144,94684.0,94680.0,0.21123785]
[1746479360754,0.22178879,94685.0,94682.0,0.21123148]
[1746479361546,0.01056133,94685.0,94683.0,0.21122983]
[1746479362623,0.01056111,94687.0,94684.0,0.21122708]
[1746479362743,0.22178548,94687.0,94684.0,0.21122708]
[1746479362944,0.56178159,94688.0,94686.0,0.21122383]
[1746479363189,0.34,94689.0,94687.0,0.21122223]
[1746479363403,0.55121809,94689.0,94687.0,0.21122223]
[1746479363561,0.01656115,94688.0,94687.0,0.21122223]
[1746479364188,0.01656115,94688.0,94687.0,0.22692223]
[1746479364373,0.01656115,94688.0,94687.0,0.24312223]
[1746479364558,0.01656115,94688.0,94687.0,0.24894143]
[1746479365640,0.01656115,94688.0,94687.0,0.24994143]
[1746479367337,0.36096461,94701.0,94698.0,0.2111955]
[1746479367538,0.34,94701.0,94699.0,0.21692898]
[1746479367748,0.34,94701.0,94700.0,0.21119324]
[1746479367959,0.01055932,94703.0,94700.0,0.00573331]
[1746479368196,0.35055955,94701.0,94698.0,0.2111957]
[1746479368508,0.34,94701.0,94700.0,0.21119324]
[1746479368922,0.3504192,94701.0,94700.0,0.21119324]
[1746479369146,0.34,94701.0,94700.0,0.21119324]
[1746479369353,0.35055932,94703.0,94701.0,0.21119011]
[1746479369518,0.21119547,94699.0,94698.0,0.00046033]
[1746479370148,0.22175056,94701.0,94698.0,0.21165803]
[1746479370311,0.0165586,94699.0,94698.0,0.21165803]
[1746479372115,0.0165586,94699.0,94698.0,0.22815803]
[1746479372921,0.0165586,94699.0,94698.0,0.24395803]
[1746479376117,0.0165586,94699.0,94698.0,0.21165803]
[1746479379360,0.01038751,94703.0,94702.0,0.21118878]
[1746479379508,0.01038751,94703.0,94702.0,0.21684139]
[1746479379852,0.35055921,94704.0,94702.0,0.21684139]
[1746479380595,0.35055899,94706.0,94704.0,0.21118271]
[1746479380808,0.5617389,94706.0,94704.0,0.21118367]
[1746479380999,0.5617389,94706.0,94705.0,0.00564629]
[1746479381497,0.35055899,94706.0,94705.0,0.00564629]
[1746479381723,0.21116701,94712.0,94705.0,0.00564629]
[1746479381937,0.34,94706.0,94705.0,0.00564629]
[1746479382135,0.34,94706.0,94705.0,0.00563446]
[1746479382985,0.55117986,94706.0,94705.0,0.00563446]
[1746479383845,0.56173885,94706.0,94703.0,0.21118604]
[1746479384048,0.57829659,94706.0,94705.0,0.00563446]
[1746479384282,0.57829659,94706.0,94704.0,0.00563657]
[1746479384476,0.2277376,94706.0,94705.0,0.00563446]
[1746479384977,0.23829659,94706.0,94705.0,0.00563446]
[1746479385199,0.01655774,94706.0,94705.0,0.21118209]
[1746479385446,0.01655774,94706.0,94705.0,0.21681655]
[1746479387000,0.01374401,94709.0,94708.0,0.2111754]
[1746479387480,0.01374401,94709.0,94708.0,0.21680157]
[1746479388412,0.01374401,94709.0,94708.0,0.00562617]
[1746479388815,0.6668094,94709.0,94708.0,0.00562617]
[1746479389306,0.35055899,94706.0,94703.0,0.2111846]
[1746479390663,0.56173976,94706.0,94703.0,0.2111846]
[1746479391553,0.57829765,94706.0,94703.0,0.2111846]
[1746479392559,0.57829765,94706.0,94705.0,3.0]
[1746479394435,0.57829765,94706.0,94705.0,3.00563249]
[1746479400431,0.56173976,94706.0,94705.0,3.00563249]
[1746479401826,0.66726005,94706.0,94705.0,3.00563249]
[1746479402039,0.56173976,94706.0,94705.0,3.00563249]
[1746479403347,0.57829724,94706.0,94705.0,3.00563249]
[1746479410534,0.56173976,94706.0,94705.0,3.00563249]
[1746479413464,0.57829793,94706.0,94705.0,3.00563249]
[1746479417325,0.56173976,94706.0,94705.0,3.00563249]
[1746479418434,0.66726005,94706.0,94705.0,3.00563249]
[1746479418735,0.69806005,94706.0,94705.0,3.00563249]
[1746479420340,0.71461844,94706.0,94705.0,3.00563249]
[1746479421232,0.69921844,94706.0,94705.0,3.00563249]
[1746479424999,0.59369815,94706.0,94705.0,3.00563249]
[1746479425223,0.57829815,94706.0,94705.0,3.00563249]
[1746479430331,0.56173976,94706.0,94705.0,3.00563249]
[1746479431544,0.56173976,94706.0,94705.0,3.01001124]
[1746479433170,0.57829756,94706.0,94705.0,3.01001124]
[1746479440325,0.56173976,94706.0,94705.0,3.01001124]
[1746479443368,0.59011999,94706.0,94705.0,3.01001124]
[1746479444528,0.57829815,94706.0,94705.0,3.01001124]
[1746479447918,0.56173976,94706.0,94705.0,3.01001124]
[1746479450119,0.003,94709.0,94708.0,0.2420754]
[1746479450528,0.003,94709.0,94708.0,0.19899922]
[1746479452413,0.01955697,94709.0,94708.0,0.19899922]
[1746479456650,0.003,94709.0,94708.0,0.19899922]
[1746479456853,0.02651974,94709.0,94708.0,0.19899922]
[1746479457076,0.003,94709.0,94708.0,0.19899922]
[1746479457934,0.003,94709.0,94708.0,0.20111087]
[1746479458138,0.003,94709.0,94708.0,0.19899922]
[1746479458860,0.003,94709.0,94708.0,0.19999922]
[1746479459416,0.003,94709.0,94708.0,0.21065532]
[1746479459601,0.003,94709.0,94708.0,0.21165532]
[1746479461912,0.003,94709.0,94708.0,0.20099922]
[1746479463996,0.003,94709.0,94708.0,0.20311066]
[1746479465087,0.003,94709.0,94708.0,0.20111066]
[1746479465395,0.003,94709.0,94708.0,0.20311066]
[1746479465997,0.003,94709.0,94708.0,0.21965151]
[1746479466200,0.003,94709.0,94708.0,0.21754007]
[1746479466407,0.003,94709.0,94708.0,5.60754007]
[1746479467144,0.003,94709.0,94708.0,5.60554007]
[1746479467281,0.003,94709.0,94708.0,5.60954007]
[1746479468311,0.003,94709.0,94708.0,5.60754007]
[1746479468715,0.003,94709.0,94708.0,5.61154007]
[1746479469320,0.003,94729.0,94718.0,0.22569395]
[1746479469525,0.003,94729.0,94718.0,5.30789395]
[1746479469721,0.003,94729.0,94718.0,5.31764608]
[1746479470629,0.003,94729.0,94718.0,5.35470373]
[1746479471231,0.003,94729.0,94718.0,5.32164608]
[1746479471435,0.003,94729.0,94718.0,5.35470373]
[1746479471631,0.003,94729.0,94718.0,5.35870373]
[1746479473647,0.003,94729.0,94718.0,5.32564608]
[1746479474970,0.003,94729.0,94718.0,5.30974608]
[1746479475182,0.003,94729.0,94718.0,2.21234608]
[1746479477044,0.01208469,94719.0,94718.0,3.07833622]
[1746479477624,0.01208469,94719.0,94718.0,1.14163622]
[1746479477994,0.01208469,94719.0,94718.0,6.19163622]
[1746479478224,0.003,94729.0,94728.0,0.55113081]
[1746479478430,0.003,94729.0,94728.0,5.64255175]
[1746479479256,0.003,94729.0,94728.0,5.6570926]
[1746479479509,0.00313617,94729.0,94728.0,5.6630926]
[1746479479902,0.00313617,94729.0,94728.0,5.6690926]
[1746479480396,0.00313617,94729.0,94728.0,5.67702534]
[1746479481145,0.001,94744.0,94743.0,0.2558016]
[1746479481277,0.001,94744.0,94743.0,5.3058016]
[1746479481493,0.001,94744.0,94743.0,5.31524144]
[1746479482073,0.001,94744.0,94743.0,0.86534144]
[1746479482266,0.001,94744.0,94743.0,0.25370059]
[1746479482469,0.001,94744.0,94743.0,0.25670059]
[1746479483331,0.001,94744.0,94743.0,0.26735988]
[1746479488197,0.001,94744.0,94743.0,5.33190073]
[1746479488550,0.001,94744.0,94743.0,0.28190073]
[1746479488753,0.001,94744.0,94743.0,5.33190073]
[1746479489394,0.001,94744.0,94743.0,5.67190073]
[1746479490141,0.001,94744.0,94743.0,5.70562904]
[1746479491746,0.001,94744.0,94743.0,5.67190073]
[1746479494251,0.001,94744.0,94743.0,0.62190073]
[1746479494409,0.001,94744.0,94743.0,5.67190073]
[1746479499514,0.001,94744.0,94743.0,0.62190073]
[1746479499738,0.01654741,94763.0,94762.0,0.21105506]
[1746479500069,0.01654741,94763.0,94762.0,0.22031119]
[1746479500982,0.01668356,94763.0,94762.0,0.22031119]
[1746479511277,0.00013615,94763.0,94762.0,0.22031119]
[1746479511485,0.00013615,94763.0,94762.0,0.21015519]
[1746479511681,0.00013615,94763.0,94762.0,0.21226538]
[1746479512315,0.03153615,94763.0,94762.0,0.00925613]
[1746479512699,0.051347,94763.0,94762.0,0.00925613]
[1746479516108,0.08175091,94763.0,94762.0,0.00925613]
[1746479516934,0.051347,94763.0,94762.0,0.00925613]
[1746479517994,0.019947,94763.0,94761.0,0.21105703]
[1746479518197,0.03163615,94763.0,94762.0,0.00799125]
[1746479518599,0.05144672,94763.0,94762.0,0.21904631]
[1746479518800,0.26249955,94763.0,94762.0,0.00799125]
[1746479518999,0.01055308,94759.0,94750.0,0.01055408]
[1746479519353,0.0315,94757.0,94756.0,0.21106763]
[1746479519644,0.04804817,94757.0,94756.0,0.21907179]
[1746479519800,0.06785874,94757.0,94756.0,0.21907179]
[1746479519983,0.08481634,94757.0,94756.0,0.21907179]
[1746479522179,0.05131057,94757.0,94756.0,0.21907179]
[1746479522987,0.0678586,94757.0,94756.0,0.21907179]
[1746479525475,0.0524586,94757.0,94756.0,0.21907179]
[1746479526193,0.04966209,94757.0,94756.0,0.21907179]
[1746479528955,0.0363586,94757.0,94756.0,0.21907179]
[1746479530274,0.01981057,94757.0,94756.0,0.21907179]
[1746479533175,0.03635856,94757.0,94756.0,0.21907179]
[1746479536268,0.06825856,94757.0,94756.0,0.21907179]
[1746479536472,0.09725867,94757.0,94756.0,0.21907179]
[1746479536671,0.06825856,94757.0,94756.0,0.21907179]
[1746479536894,0.01981057,94757.0,94756.0,0.21907179]
[1746479540081,0.03635655,94757.0,94756.0,0.21907179]
[1746479546013,0.01980851,94757.0,94756.0,0.21907179]
[1746479547216,0.01480851,94757.0,94756.0,0.21907179]
[1746479549904,0.00013615,94763.0,94762.0,0.21105506]
[1746479550113,0.00013615,94763.0,94762.0,0.21911659]
[1746479550516,0.01668374,94763.0,94762.0,0.21911659]
[1746479555323,0.07509022,94763.0,94762.0,0.00806153]
[1746479555494,0.07509022,94763.0,94762.0,0.21911659]
[1746479555694,0.28614305,94763.0,94762.0,0.00806153]
[1746479555862,0.07509022,94763.0,94762.0,0.00806153]
[1746479556507,0.07509022,94763.0,94762.0,0.21911659]
[1746479556880,0.04978374,94763.0,94762.0,0.21911659]
[1746479557949,0.01668374,94763.0,94762.0,0.21911659]
[1746479559213,0.03651145,94763.0,94762.0,0.21911659]
[1746479561387,0.01996386,94763.0,94762.0,0.21911659]
[1746479561953,0.00013615,94763.0,94762.0,0.21911659]
[1746479564257,0.01668363,94763.0,94762.0,0.21911659]
[1746479564456,0.01668363,94763.0,94762.0,0.25001659]
[1746479565274,0.01668363,94763.0,94762.0,0.23471659]
[1746479566715,0.01668363,94763.0,94762.0,0.25001659]
[1746479567547,0.01668363,94763.0,94762.0,0.23471659]
[1746479569514,0.01668363,94763.0,94762.0,0.21911659]
[1746479571647,0.00013615,94763.0,94762.0,0.21911659]
[1746479574581,0.01668371,94763.0,94762.0,0.21911659]
[1746479580337,0.00013615,94763.0,94762.0,0.21911659]
[1746479583326,0.01668377,94763.0,94762.0,0.21911659]
[1746479584507,0.01668377,94763.0,94762.0,0.00806153]
[1746479584919,0.01668377,94763.0,94762.0,0.21105506]
[1746479585082,0.03650028,94763.0,94762.0,0.21105506]
[1746479585260,0.03650028,94763.0,94762.0,0.21910698]
[1746479585623,0.24755311,94763.0,94762.0,0.00805192]
[1746479585921,0.03650028,94763.0,94759.0,0.21106174]
[1746479586214,0.01981651,94762.0,94761.0,0.21105729]
[1746479586588,0.01981651,94762.0,94761.0,0.21911137]
[1746479590084,0.00013615,94763.0,94762.0,0.21105506]
[1746479590422,0.00013615,94763.0,94762.0,0.21912654]
[1746479591041,0.01668376,94763.0,94762.0,0.21912654]
[1746479595000,0.01668376,94763.0,94762.0,0.25012654]
[1746479595338,0.01668376,94763.0,94762.0,0.23442654]
[1746479595546,0.01668376,94763.0,94762.0,0.21912654]
[1746479596726,0.00013615,94763.0,94762.0,0.21912654]
[1746479601227,0.01668394,94763.0,94762.0,0.21912654]
[1746479601587,0.01668394,94763.0,94762.0,0.00807148]
[1746479603232,0.01668394,94763.0,94762.0,0.21912654]
[1746479604194,0.01668394,94763.0,94762.0,0.00807148]
[1746479604432,0.01668394,94763.0,94755.0,0.21106852]
[1746479604433,0.01668394,94763.0,94758.0,0.21106397]
[1746479604640,0.01668394,94763.0,94762.0,0.00806113]
[1746479604811,0.01668394,94763.0,94761.0,0.21105688]
[1746479605013,0.01668394,94763.0,94762.0,0.21911619]
[1746479611587,0.00013615,94763.0,94762.0,0.21911619]
[1746479614726,0.01668389,94763.0,94762.0,0.21911619]
[1746479618237,0.01668389,94763.0,94762.0,0.00806113]
[1746479618445,0.01668389,94763.0,94762.0,0.21911619]
[1746479621330,0.00013615,94763.0,94762.0,0.21911619]
[1746479621890,0.00013615,94763.0,94762.0,0.24941619]
[1746479624540,0.00013615,94763.0,94762.0,0.26181551]
[1746479625038,0.00013615,94763.0,94762.0,0.26381551]
[1746479625309,0.00013615,94763.0,94762.0,0.27835636]
[1746479625540,0.01654632,94771.0,94768.0,0.59608255]
[1746479625763,0.001,94789.0,94768.0,5.64608255]
[1746479626007,0.001,94789.0,94768.0,5.65403597]
[1746479626232,0.001,94789.0,94768.0,6.07313597]
[1746479626455,0.001,94789.0,94788.0,0.25500183]
[1746479626894,0.001,94789.0,94788.0,5.31287725]
[1746479627116,0.001,94789.0,94788.0,5.34765434]
[1746479627343,0.001,94789.0,94788.0,5.65287725]
[1746479628021,0.001,94789.0,94788.0,5.65387725]
[1746479628243,0.001,94789.0,94788.0,2.6918364]
[1746479629373,0.001,94789.0,94788.0,1.0389364]
[1746479629580,0.001,94789.0,94788.0,1.0409364]
[1746479630135,0.001,94789.0,94788.0,0.5913364]
[1746479632653,0.001,94789.0,94788.0,4.74507725]
[1746479632855,7e-05,94800.0,94793.0,0.21098604]
[1746479633101,7e-05,94800.0,94793.0,0.25159188]
[1746479633331,7e-05,94800.0,94793.0,0.24948251]
[1746479634094,0.00113612,94794.0,94793.0,0.24948251]
[1746479641801,0.00113612,94794.0,94793.0,0.23428251]
[1746479642410,0.00113612,94794.0,94793.0,0.21818251]
[1746479645046,0.00113612,94794.0,94793.0,0.00719647]
[1746479645227,0.02611747,94794.0,94793.0,0.21818251]
[1746479645427,0.00113612,94794.0,94793.0,0.21818251]
[1746479659534,0.00113612,94794.0,94793.0,3.21818251]
[1746479664013,0.00113612,94794.0,94793.0,3.25128251]
[1746479664643,0.00113612,94794.0,94793.0,8.65204942]
[1746479665225,0.00113612,94794.0,94793.0,8.66659027]
[1746479665428,0.00113612,94794.0,94793.0,8.67059027]
[1746479666371,0.00113612,94794.0,94793.0,8.67559027]
[1746479666903,0.00113612,94794.0,94793.0,8.68347544]
[1746479667701,0.00113612,94794.0,94793.0,8.68847544]
[1746479667900,7e-05,94800.0,94799.0,0.25601353]
[1746479668099,7e-05,94800.0,94799.0,0.26270732]
[1746479669103,7e-05,94800.0,94799.0,0.26670732]
[1746479669513,7e-05,94800.0,94799.0,0.27070732]
[1746479669961,7e-05,94800.0,94799.0,0.25616647]
[1746479672271,7e-05,94800.0,94799.0,0.24816647]
[1746479672472,7e-05,94800.0,94799.0,0.25416647]
[1746479677389,7e-05,94800.0,94799.0,0.25416647]
[1746479684777,7e-05,94800.0,94799.0,0.01269379]
[1746479684978,7e-05,94800.0,94799.0,0.22366647]
[1746479685260,0.01660902,94800.0,94799.0,0.22366647]
[1746479685711,0.01660902,94800.0,94799.0,0.22066647]
[1746479686046,0.01660902,94800.0,94799.0,0.22266647]
[1746479686225,0.01660902,94800.0,94799.0,0.25216647]
[1746479687976,0.01660902,94800.0,94799.0,0.25416647]
[1746479690837,7e-05,94800.0,94799.0,0.25416647]
[1746479695883,7e-05,94800.0,94799.0,0.23766647]
[1746479696170,7e-05,94800.0,94799.0,0.22166647]
[1746479702820,7e-05,94800.0,94799.0,0.25276647]
[1746479712403,7e-05,94800.0,94799.0,0.22166647]
[1746479717999,7e-05,94800.0,94799.0,0.01069379]
[1746479718209,0.0543828,94800.0,94799.0,0.01069379]
[1746479718359,0.0543828,94800.0,94799.0,0.22166647]
[1746479719221,0.03117,94800.0,94799.0,0.22166647]
[1746479720606,0.03117,94800.0,94799.0,0.01069379]
[1746479720607,0.24214046,94800.0,94799.0,0.01069379]
[1746479720784,0.03117,94800.0,94799.0,0.01069379]
[1746479721677,0.24214046,94800.0,94799.0,0.00869379]
[1746479721864,0.24214046,94800.0,94799.0,0.00669379]
[1746479722364,0.25868084,94800.0,94799.0,0.00669379]
[1746479724028,0.35205825,94800.0,94799.0,0.00669379]
[1746479724371,0.35305825,94800.0,94799.0,0.00669379]
[1746479724751,0.35205825,94800.0,94799.0,0.00669379]
[1746479725073,0.35305825,94800.0,94799.0,0.00669379]
[1746479726526,0.2670109,94800.0,94799.0,0.00669379]
[1746479730815,0.25047052,94800.0,94799.0,0.00669379]
[1746479733601,0.26701159,94800.0,94799.0,0.00669379]
[1746479735077,0.25171159,94800.0,94799.0,0.00669379]
[1746479735714,0.23593433,94800.0,94799.0,0.00669379]
[1746479736499,0.25213433,94800.0,94799.0,0.00669379]
[1746479745408,0.23593433,94800.0,94799.0,0.00669379]
[1746479746814,0.33021709,94800.0,94799.0,0.00669379]
[1746479747015,0.36251709,94800.0,94799.0,0.00669379]
[1746479749716,0.26823433,94800.0,94799.0,0.00669379]
[1746479749920,0.25169326,94800.0,94799.0,0.00669379]
[1746479752864,0.26823445,94800.0,94799.0,0.00669379]
[1746479756617,0.25169326,94800.0,94799.0,0.00669379]
[1746479759665,0.26823443,94800.0,94799.0,0.00669379]
[1746479760831,0.37375472,94800.0,94799.0,0.00669379]
[1746479762183,0.23593443,94800.0,94799.0,0.00669379]
[1746479762558,0.02496397,94800.0,94799.0,0.24926647]
[1746479762759,0.02496397,94800.0,94799.0,0.21766647]
[1746479763055,0.02496397,94800.0,94799.0,0.00669379]
[1746479763783,0.23593443,94800.0,94799.0,0.00669379]
[1746479764820,0.02496397,94800.0,94799.0,0.00669379]
[1746479765658,0.02496397,94800.0,94799.0,0.21766647]
[1746479769574,0.02496397,94800.0,94799.0,0.00669379]
[1746479769749,0.23593443,94800.0,94799.0,0.00669379]
[1746479769942,0.21939326,94800.0,94799.0,0.00669379]
[1746479770206,0.2877455,94800.0,94799.0,0.00669379]
[1746479770532,0.21939326,94800.0,94799.0,0.00669379]
[1746479773361,0.23593398,94800.0,94799.0,0.00669379]
[1746479776502,0.23593398,94800.0,94799.0,0.00466627]
[1746479779857,0.21939326,94800.0,94799.0,0.00466627]
[1746479783031,0.23593414,94800.0,94799.0,0.00466627]
[1746479783593,0.30022929,94800.0,94799.0,0.00466627]
[1746479786389,0.23593414,94800.0,94799.0,0.00466627]
[1746479786787,0.21939326,94800.0,94799.0,0.00466627]
[1746479789903,0.23593394,94800.0,94799.0,0.00466627]
[1746479794323,0.02496348,94800.0,94799.0,0.03736627]
[1746479794531,0.02496348,94800.0,94799.0,0.24833895]
[1746479800008,0.0084228,94800.0,94799.0,0.24833895]
[1746479802330,0.0074228,94800.0,94799.0,0.24833895]
[1746479804390,0.0074228,94800.0,94799.0,0.21563895]
[1746479805475,0.0074228,94800.0,94799.0,0.24693895]
[1746479805763,0.0074228,94800.0,94799.0,0.21563895]
[1746479808531,0.0074228,94800.0,94799.0,0.24703895]
[1746479826442,0.02396272,94800.0,94799.0,0.24703895]
[1746479826799,0.0074228,94800.0,94799.0,0.24703895]
[1746479831128,0.02396278,94800.0,94799.0,0.24703895]
[1746479838337,0.0074228,94800.0,94799.0,0.24703895]
[1746479840548,0.0074228,94800.0,94799.0,0.21563895]
[1746479841461,0.02396276,94800.0,94799.0,0.21563895]
[1746479844660,0.02396276,94800.0,94799.0,0.24753895]
[1746479845924,0.02396276,94800.0,94799.0,0.21563895]
[1746479848181,0.0074228,94800.0,94799.0,0.21563895]
[1746479852451,0.02396294,94800.0,94799.0,0.21563895]
[1746479857502,0.0074228,94800.0,94799.0,0.21563895]
[1746479860750,0.02396285,94800.0,94799.0,0.21563895]
[1746479872965,0.0074228,94800.0,94799.0,0.21563895]
[1746479875865,0.02396273,94800.0,94799.0,0.21563895]
[1746479877025,0.0074228,94800.0,94799.0,0.21563895]
[1746479881409,0.02396277,94800.0,94799.0,0.21563895]
[1746479886437,0.02396277,94800.0,94799.0,0.24833895]
[1746479887391,0.02396277,94800.0,94799.0,0.21563895]
[1746479890813,0.0074228,94800.0,94799.0,0.21563895]
[1746479893718,0.02396288,94800.0,94799.0,0.21563895]
[1746479896128,0.0074228,94800.0,94799.0,0.21563895]
[1746479898940,0.02396293,94800.0,94799.0,0.21563895]
[1746479904063,0.23493339,94800.0,94799.0,0.00466627]
[1746479904275,0.29461114,94800.0,94799.0,0.00466627]
[1746479905704,0.27831114,94800.0,94799.0,0.00466627]
[1746479905903,0.29421114,94800.0,94799.0,0.00466627]
[1746479907926,0.29421114,94800.0,94799.0,0.00046033]
[1746479910905,0.26603339,94800.0,94799.0,0.00046033]
[1746479911453,0.24949326,94800.0,94799.0,0.00046033]
[1746479914323,0.25149326,94800.0,94799.0,0.00046033]
[1746479914989,0.25049326,94800.0,94799.0,0.00046033]
[1746479915122,0.25149326,94800.0,94799.0,0.00046033]
[1746479915331,0.28300207,94800.0,94799.0,0.00046033]
[1746479916247,1.12300207,94800.0,94799.0,0.00046033]
[1746479916504,1.16183179,94800.0,94799.0,0.00046033]
[1746479916683,1.1472899,94800.0,94799.0,0.00046033]
[1746479916898,1.1472899,94800.0,94793.0,2.97442922]
[1746479916899,0.59842466,94794.0,94793.0,2.97442922]
[1746479917097,0.73364166,94794.0,94793.0,2.92155596]
[1746479917297,1.48836446,94794.0,94793.0,2.84751626]
[1746479917503,1.45866775,94794.0,94793.0,2.80550125]
[1746479917708,1.45866775,94794.0,94793.0,2.75262799]
[1746479917934,1.95866775,94794.0,94793.0,2.75262799]
[1746479918143,2.10866775,94794.0,94793.0,2.75262799]
[1746479918345,2.15866775,94794.0,94793.0,2.75262799]
[1746479918547,2.10866775,94794.0,94793.0,2.75262799]
[1746479918747,2.12821276,94794.0,94793.0,2.75262799]
[1746479919327,2.12521276,94794.0,94793.0,2.75262799]
[1746479919561,0.74046781,94794.0,94793.0,2.75262799]
[1746479919725,0.72396781,94794.0,94793.0,2.75262799]
[1746479919931,0.93495162,94794.0,94793.0,2.75262799]
[1746479920383,0.23495162,94794.0,94793.0,2.75262799]
[1746479920581,0.02396781,94794.0,94793.0,2.75262799]
[1746479920828,0.02596781,94794.0,94793.0,2.75262799]
[1746479921002,0.02896781,94794.0,94793.0,2.75262799]
[1746479921216,0.02896781,94794.0,94793.0,2.96361403]
[1746479921472,0.02696781,94794.0,94793.0,2.96361403]
[1746479921686,0.02396781,94794.0,94793.0,2.75562799]
[1746479925287,0.23495162,94794.0,94793.0,2.75562799]
[1746479925545,0.30395193,94794.0,94793.0,2.75562799]
[1746479926499,0.23495162,94794.0,94793.0,2.75562799]
[1746479928508,0.21840661,94794.0,94793.0,2.75562799]
[1746479931599,0.23494838,94794.0,94793.0,2.75562799]
[1746479933717,0.02396457,94794.0,94793.0,2.96661403]
[1746479933929,0.02396457,94794.0,94793.0,2.77062799]
[1746479934145,0.23494838,94794.0,94793.0,2.77062799]
[1746479935725,0.23494838,94794.0,94793.0,2.75562799]
[1746479936146,0.21840661,94794.0,94793.0,2.75562799]
[1746479941388,0.02396425,94794.0,94793.0,2.77192799]
[1746479941519,0.23494806,94794.0,94793.0,2.77192799]
[1746479946784,0.21840661,94794.0,94793.0,2.77192799]
[1746479950349,0.0074228,94794.0,94793.0,2.99851403]
[1746479950549,0.0074228,94794.0,94793.0,2.78752799]
[1746479951172,0.02396544,94794.0,94793.0,2.78752799]
[1746479951783,0.23494925,94794.0,94793.0,2.78752799]
[1746479952235,0.23494925,94794.0,94793.0,2.77192799]
[1746479956211,0.32504769,94794.0,94793.0,2.77192799]
[1746479956387,0.32504769,94794.0,94793.0,2.75562799]
[1746479959750,0.34487313,94794.0,94793.0,2.75562799]
[1746479960123,0.32833049,94794.0,94793.0,2.75562799]
[1746479962226,0.32833049,94794.0,94793.0,2.75262799]